bitfinex-derivatives/quotes_ETHF0:USTF0_20251103
["timestamp","ask_amount","ask_price","bid_price","bid_amount"]
[1762161998196,7.8758,3712.3,3711.5,0.89885]
[1762161998393,0.62493024,3712.2,3711.5,0.4138]
[1762161998597,3.2078,3712.3,3711.5,0.4138]
[1762161998798,0.62493024,3712.2,3711.5,0.41699657]
[1762161999101,3.21016667,3712.3,3711.5,0.41699657]
[1762161999299,0.62485905,3712.2,3711.5,0.41699657]
[1762161999504,3.21016667,3712.3,3711.9,0.48499]
[1762162001499,12.77616667,3712.3,3711.9,0.48499]
[1762162002509,3.21016667,3712.3,3712.2,0.6616]
[1762162002709,3.83476493,3712.3,3712.2,0.6616]
[1762162003408,3.83476493,3712.3,3711.8,0.48501]
[1762162003715,3.21016667,3712.3,3711.8,0.48501]
[1762162003912,3.21016667,3712.3,3712.0,0.48498]
[1762162004509,0.00236667,3712.3,3712.2,0.7022]
[1762162005106,0.00236667,3712.3,3711.8,0.79601]
[1762162005505,0.00236667,3712.3,3711.9,0.485]
[1762162006108,0.00236667,3712.3,3712.0,0.48499]
[1762162006811,0.00236667,3712.3,3711.8,0.311]
[1762162006812,0.00236667,3712.3,3711.8,0.79601]
[1762162007205,0.00236667,3712.3,3711.8,0.311]
[1762162007707,0.00236667,3712.3,3711.9,0.485]
[1762162008506,0.00236667,3712.3,3712.0,0.48498]
[1762162008912,0.00236667,3712.3,3711.8,0.79601]
[1762162009112,0.00236667,3712.3,3711.9,0.485]
[1762162009413,0.00236667,3712.3,3712.2,0.7022]
[1762162011311,0.62913226,3712.3,3712.2,0.7022]
[1762162014209,0.00236667,3712.3,3712.2,0.7022]
[1762162015110,3.2078,3713.0,3712.9,0.7022]
[1762162015415,0.6274811,3713.0,3712.9,0.7022]
[1762162015615,0.6274811,3713.0,3712.9,41.5022]
[1762162015915,0.84237021,3713.0,3712.9,41.5022]
[1762162016217,0.00314395,3713.0,3712.9,41.5022]
[1762162016413,4.28594395,3713.0,3712.9,40.8]
[1762162016817,1.70529072,3713.0,3712.9,40.8]
[1762162017012,1.70529072,3713.0,3712.6,0.48491]
[1762162017213,0.62714677,3712.9,3712.8,0.7022]
[1762162017418,1.33294677,3712.9,3712.4,3.69273]
[1762162017718,0.7058,3712.9,3712.5,41.28492]
[1762162018014,0.62702768,3712.8,3712.5,40.8]
[1762162018317,0.7058,3712.6,3712.5,40.8]
[1762162018706,0.37234395,3713.0,3712.5,40.8]
[1762162018911,0.62701647,3712.9,3712.5,40.8]
[1762162019210,0.62701647,3712.8,3712.5,41.28492]
[1762162019420,0.37234395,3713.0,3712.5,40.8]
[1762162019614,0.62692895,3712.9,3712.8,0.7022]
[1762162019812,0.00314395,3713.0,3712.9,1.18708]
[1762162020007,0.63003705,3713.0,3712.9,1.18708]
[1762162020220,0.00314395,3713.0,3712.9,1.18708]
[1762162021919,0.7058,3712.9,3712.5,41.1778]
[1762162022415,0.7058,3712.9,3712.5,40.8]
[1762162024319,0.7058,3712.9,3712.6,0.48491]
[1762162024516,0.37234395,3713.0,3712.9,0.7022]
[1762162024517,0.00314395,3713.0,3712.9,0.7022]
[1762162026121,1.07814395,3713.0,3712.5,40.8]
[1762162026520,0.62566333,3712.9,3712.5,40.8]
[1762162026721,0.62566333,3712.8,3712.5,40.8]
[1762162026912,0.37234395,3713.0,3712.5,40.8]
[1762162027116,0.62566657,3712.9,3712.5,40.8]
[1762162027310,0.62566657,3712.8,3712.5,40.8]
[1762162027525,0.37234395,3713.0,3712.5,40.8]
[1762162027722,0.62575437,3712.9,3712.5,40.8]
[1762162028026,0.7058,3712.6,3712.5,40.8]
[1762162029921,0.37234395,3713.0,3712.5,40.8]
[1762162030228,0.62590026,3712.9,3712.8,0.7022]
[1762162030424,0.00314395,3713.0,3712.9,0.7022]
[1762162031623,0.6204,3712.8,3712.7,0.311]
[1762162032425,1.24641375,3712.8,3712.7,0.311]
[1762162034337,0.9585,3712.0,3711.9,3.2078]
[1762162034636,0.9585,3712.0,3711.5,0.00319657]
[1762162034837,0.9585,3712.0,3711.6,40.8]
[1762162035934,0.9585,3712.0,3711.5,0.00319657]
[1762162036141,0.6204,3711.6,3711.5,0.00319657]
[1762162036935,3.2078,3712.3,3711.8,0.6582]
[1762162037140,10.37842035,3712.2,3711.8,0.6582]
[1762162037340,0.3381,3712.0,3711.8,0.6582]
[1762162037843,12.7448,3712.3,3711.9,0.6582]
[1762162038043,0.6260212,3712.2,3711.9,0.6582]
[1762162038243,12.7448,3712.3,3711.9,0.6582]
[1762162038452,0.62599673,3712.2,3711.9,0.6582]
[1762162038641,12.7448,3712.3,3711.9,0.6582]
[1762162038842,0.6259919,3712.2,3711.9,0.6582]
[1762162039044,12.7448,3712.3,3711.9,0.6582]
[1762162039239,0.62599883,3712.2,3711.9,0.6582]
[1762162039445,3.2078,3712.3,3711.9,0.6582]
[1762162040042,0.62596632,3712.2,3711.9,0.6582]
[1762162040346,0.6204,3711.8,3711.5,0.00319657]
[1762162040735,0.3381,3712.0,3711.5,0.00319657]
[1762162041240,0.3381,3712.0,3711.5,0.48826657]
[1762162041847,0.3381,3712.0,3711.5,0.00319657]
[1762162042148,0.6204,3711.6,3711.5,0.00319657]
[1762162042342,0.3381,3712.0,3711.5,0.66139657]
[1762162042645,9.538,3711.9,3711.5,0.66139657]
[1762162044546,9.538,3711.9,3711.5,0.00319657]
[1762162044547,0.6204,3711.6,3711.5,0.00319657]
[1762162046046,9.538,3711.9,3711.5,0.55279657]
[1762162046350,9.78326061,3711.8,3711.5,0.55279657]
[1762162046549,9.538,3711.8,3711.5,0.55279657]
[1762162047051,0.3381,3712.0,3711.5,0.55279657]
[1762162047248,4.65585919,3712.8,3712.2,0.5496]
[1762162047453,0.87074156,3712.7,3712.6,0.5496]
[1762162047646,9.538,3712.7,3712.6,0.5496]
[1762162048243,3.2078,3713.4,3712.6,1.03452]
[1762162048443,9.538,3713.1,3712.6,0.5496]
[1762162048648,0.3183,3712.5,3712.4,3.2078]
[1762162048844,0.8865,3712.5,3712.4,3.2078]
[1762162049253,0.8865,3712.5,3712.4,44.0078]
[1762162049548,0.8865,3712.5,3712.4,3.2078]
[1762162051158,0.00314395,3713.0,3712.9,0.5496]
[1762162054559,3.2078,3713.8,3713.5,0.48481]
[1762162054852,3.2078,3714.8,3714.2,0.5496]
[1762162055051,7.37040046,3714.4,3713.8,3.69257]
[1762162055257,6.499,3714.4,3713.9,0.48475]
[1762162055448,6.50143097,3714.4,3714.0,40.8]
[1762162055856,0.00243097,3714.4,3714.3,0.5496]
[1762162056753,0.57063097,3714.4,3714.0,40.8]
[1762162057950,0.00243097,3714.4,3714.0,40.8]
[1762162058158,0.00243097,3714.4,3714.3,0.5496]
[1762162061160,0.025,3714.7,3714.3,0.5496]
[1762162061357,1.44805919,3717.4,3715.5,0.2154]
[1762162061557,6.0931,3717.5,3716.3,3.2078]
[1762162061558,0.5249,3716.4,3716.3,3.2078]
[1762162062259,0.00319631,3716.4,3716.3,3.2078]
[1762162062654,0.52809631,3716.4,3716.3,3.2078]
[1762162062869,0.5249,3715.9,3715.8,3.2078]
[1762162063960,10.1509,3715.9,3715.8,3.2078]
[1762162064964,10.1479,3715.9,3715.8,3.2078]
[1762162066054,0.2975,3715.5,3715.3,3.2078]
[1762162068165,9.623,3715.9,3715.4,0.5368]
[1762162068660,3.5053,3716.0,3715.7,0.5368]
[1762162068661,9.616,3715.8,3715.7,0.5368]
[1762162068865,0.00319631,3716.4,3715.9,0.5368]
[1762162069163,0.5249,3715.8,3715.7,3.2078]
[1762162070764,0.5249,3715.8,3715.3,3.2078]
[1762162070967,0.5249,3715.8,3715.3,3.69236]
[1762162071265,0.5249,3715.8,3715.3,3.2078]
[1762162074764,0.5249,3715.4,3715.3,3.2078]
[1762162075069,0.5249,3715.4,3714.8,3.2078]
[1762162079272,0.8224,3715.5,3715.4,0.5368]
[1762162079475,10.4114,3715.5,3715.0,0.1684]
[1762162079676,10.4114,3715.5,3714.8,3.2078]
[1762162081180,10.4114,3715.5,3714.9,0.48462]
[1762162081476,0.62032533,3715.4,3714.8,3.69244]
[1762162081676,9.8865,3715.5,3714.8,3.69244]
[1762162081877,0.62032707,3715.4,3714.8,3.2078]
[1762162082070,9.8865,3715.5,3714.8,3.2078]
[1762162082278,0.8528932,3715.4,3714.8,3.2078]
[1762162082483,0.62039416,3715.3,3714.8,3.2078]
[1762162082679,9.8865,3715.5,3714.8,3.2078]
[1762162082879,0.61879976,3715.4,3714.8,3.2078]
[1762162083073,0.61879976,3715.3,3714.8,3.2078]
[1762162083273,9.8865,3715.5,3714.8,3.2078]
[1762162083475,0.85195983,3715.4,3714.8,3.2078]
[1762162083675,0.61928425,3715.3,3714.8,3.2078]
[1762162083875,0.61928425,3715.2,3714.8,3.2078]
[1762162084081,9.8865,3715.5,3714.8,3.2078]
[1762162084378,0.85199993,3715.4,3714.8,3.2078]
[1762162084574,0.85199993,3715.3,3714.9,0.48462]
[1762162084781,0.61932643,3715.2,3715.1,0.5368]
[1762162085374,0.2329096,3715.2,3715.1,0.5368]
[1762162085576,1.37713603,3715.2,3714.8,3.2078]
[1762162085774,1.14422643,3715.1,3715.0,0.5368]
[1762162086383,0.61932643,3715.1,3715.0,0.7052]
[1762162086583,1.44805919,3715.9,3715.3,0.5368]
[1762162086880,10.42100738,3715.8,3715.7,0.5368]
[1762162087384,10.94590738,3715.8,3715.7,0.5368]
[1762162088679,0.85300738,3715.8,3715.7,0.5368]
[1762162088882,9.43300738,3715.8,3715.7,0.5368]
[1762162089379,9.43300738,3715.8,3715.7,3.7446]
[1762162089781,0.85300738,3715.8,3715.7,3.7446]
[1762162090078,0.00319631,3716.4,3716.3,0.1902]
[1762162091676,1.44805919,3717.3,3717.0,0.2254]
[1762162091979,9.571,3717.7,3717.1,3.2078]
[1762162092180,0.3114,3717.5,3717.1,3.2078]
[1762162092379,0.3114,3717.5,3717.1,44.0078]
[1762162092882,0.3114,3717.5,3717.1,3.21064938]
[1762162092883,0.3147668,3717.5,3717.1,3.21064938]
[1762162093283,0.0033668,3717.5,3717.3,0.2254]
[1762162093479,0.0033668,3717.5,3717.4,0.7097]
[1762162097491,0.2975,3718.5,3718.4,0.2221]
[1762162097982,9.578,3718.6,3718.5,0.2221]
[1762162098286,9.577,3718.7,3718.6,0.2221]
[1762162098583,0.00224587,3718.7,3718.6,0.2221]
[1762162098779,0.3114,3718.5,3718.3,40.8]
[1762162099180,9.581,3718.4,3718.3,40.8]
[1762162099583,9.581,3718.4,3718.2,3.2078]
[1762162099781,0.3114,3718.5,3718.4,0.2221]
[1762162099987,9.8914,3718.5,3718.4,0.2221]
[1762162100189,0.3114,3718.5,3718.4,0.2221]
[1762162100587,9.8944,3718.5,3718.4,0.2221]
[1762162101285,0.00224587,3718.7,3718.6,0.2221]
[1762162102584,0.00224587,3718.7,3718.2,40.8]
[1762162102585,0.3114,3718.5,3718.2,40.8]
[1762162102790,0.3114,3718.0,3717.2,0.48433]
[1762162102983,0.3114,3718.0,3717.4,3.6921]
[1762162103191,0.3114,3718.0,3717.4,44.4921]
[1762162103584,0.3114,3718.0,3717.5,0.48428]
[1762162103889,0.3114,3718.0,3717.8,3.2078]
[1762162104690,0.3114,3718.0,3717.9,0.2221]
[1762162104882,0.3114,3718.0,3717.8,3.2078]
[1762162105083,0.3114,3718.0,3717.9,0.2221]
[1762162105587,4.1234,3718.0,3717.9,0.2221]
[1762162105890,0.3114,3718.0,3717.9,0.2221]
[1762162106091,4.1234,3718.0,3717.9,0.2221]
[1762162107485,4.1234,3718.0,3717.8,3.69204]
[1762162107789,4.1234,3718.0,3717.9,0.2157]
[1762162108590,0.3114,3718.0,3717.9,0.2157]
[1762162109286,0.3114,3718.0,3717.8,3.2078]
[1762162109287,0.5181,3717.9,3717.8,3.2078]
[1762162109493,0.8438,3717.5,3717.4,3.2078]
[1762162111397,0.3114,3718.0,3717.4,3.2078]
[1762162111398,0.3114,3718.0,3717.9,0.2157]
[1762162111692,0.3114,3718.0,3717.9,3.4235]
[1762162111891,6.7034,3718.0,3717.9,3.4235]
[1762162112689,0.3114,3718.0,3717.9,3.4235]
[1762162112890,3.0054,3718.0,3717.9,3.4235]
[1762162113983,3.5235,3718.0,3717.4,0.4843]
[1762162114289,3.5235,3718.0,3717.4,3.2078]
[1762162114489,3.5235,3718.0,3717.9,3.2078]
[1762162115092,0.8295,3718.0,3717.9,3.2078]
[1762162115292,4.0095,3718.0,3717.9,3.2078]
[1762162115892,4.0095,3718.0,3717.5,3.2078]
[1762162116795,4.0095,3718.0,3717.5,3.69208]
[1762162117392,4.0095,3718.0,3717.5,3.2078]
[1762162117797,4.0095,3718.0,3717.7,0.48425]
[1762162118497,4.0095,3718.0,3717.6,0.48427]
[1762162119293,4.0095,3718.0,3717.5,3.69208]
[1762162119499,4.0095,3718.0,3717.5,3.69209]
[1762162119698,7.7625,3718.0,3717.5,3.69209]
[1762162120399,0.8295,3718.0,3717.5,3.69209]
[1762162120701,5.1425,3718.0,3717.5,3.69208]
[1762162121197,5.1425,3718.0,3717.6,0.48427]
[1762162121392,0.8295,3718.0,3717.7,0.48425]
[1762162121599,0.3114,3718.0,3717.9,0.2157]
[1762162121798,1.6793536,3718.0,3717.6,0.48426]
[1762162122001,0.8518,3718.0,3717.6,0.48426]
[1762162122198,0.59950684,3717.9,3717.6,0.48426]
[1762162122397,0.8518,3718.0,3717.6,0.48426]
[1762162122599,0.59950538,3717.9,3717.7,0.48426]
[1762162122799,0.3114,3718.0,3717.7,0.48426]
[1762162123199,0.82811545,3717.9,3717.7,0.48426]
[1762162123396,9.8494,3718.0,3717.7,0.48426]
[1762162123601,10.3898,3718.0,3717.9,3.2078]
[1762162123805,0.292,3717.5,3717.4,3.3375]
[1762162124600,0.292,3717.5,3717.4,3.8218]
[1762162127697,0.292,3717.5,3717.4,3.3375]
[1762162129708,0.292,3717.5,3717.4,0.1297]
[1762162129904,0.292,3717.5,3717.4,3.3375]
[1762162132509,8.52055132,3717.5,3716.7,1.32418384]
[1762162132810,3.2078,3716.8,3716.0,0.3059]
[1762162133010,3.2078,3716.4,3716.0,0.3059]
[1762162133211,0.82871014,3716.3,3715.3,3.2078]
[1762162133406,3.2078,3715.9,3715.3,3.2078]
[1762162133713,0.82871014,3715.8,3715.5,0.30896369]
[1762162133915,0.22855132,3715.7,3715.6,0.5299]
[1762162134114,3.21025398,3715.9,3715.8,0.5299]
[1762162134315,0.26094723,3715.9,3715.8,0.5299]
[1762162135411,0.00245398,3715.9,3715.8,0.5299]
[1762162135612,9.53445398,3715.9,3715.8,0.5299]
[1762162136817,13.00011132,3715.9,3715.8,0.5299]
[1762162137415,13.00011132,3715.9,3715.5,0.30896369]
[1762162137615,12.74225398,3715.9,3715.5,0.30896369]
[1762162138311,0.2575777,3715.8,3715.5,0.30896369]
[1762162138514,0.25759324,3715.7,3715.5,0.00306369]
[1762162138717,0.25759324,3715.6,3715.5,0.00306369]
[1762162139111,0.25759324,3715.8,3715.5,0.30896369]
[1762162141421,0.60387797,3715.7,3714.5,0.3059]
[1762162141717,12.74225398,3715.9,3714.5,0.3059]
[1762162141718,3.2078,3714.8,3714.5,0.3059]
[1762162141924,9.79133438,3714.7,3714.3,0.05686]
[1762162142223,3.2078,3714.4,3714.3,0.05686]
[1762162142527,3.2078,3714.4,3714.3,0.0601172]
[1762162143116,12.7418,3714.4,3714.3,0.0601172]
[1762162144421,12.7438,3714.4,3714.3,0.0601172]
[1762162144822,3.2078,3714.4,3714.3,0.0601172]
[1762162145423,12.7438,3714.4,3714.3,0.0601172]
[1762162146334,20.7438,3714.4,3713.5,0.3059]
[1762162146536,3.2078,3713.9,3713.5,0.3059]
[1762162146737,9.536,3713.8,3713.5,0.3059]
[1762162147331,9.536,3713.8,3713.5,0.30923252]
[1762162148133,9.536,3713.8,3713.5,0.00333252]
[1762162148833,9.536,3713.8,3713.5,0.30923252]
[1762162149027,3.2078,3713.9,3713.5,0.30923252]
[1762162149235,9.537,3713.7,3713.5,0.30923252]
[1762162149935,3.2078,3713.9,3713.5,0.30923252]
[1762162150143,9.538,3713.6,3713.5,0.30923252]
[1762162151035,3.2078,3713.9,3713.5,0.30923252]
[1762162151335,3.2078,3713.9,3713.8,0.5299]
[1762162151539,6.3768,3713.9,3713.8,0.5299]
[1762162151745,12.7468,3713.9,3713.8,0.5299]
[1762162151940,3.2078,3713.9,3713.8,0.5299]
[1762162152140,12.7458,3713.9,3713.8,0.5299]
[1762162152344,3.2078,3713.9,3713.5,0.30923252]
[1762162152643,9.539,3713.8,3713.5,0.30923252]
[1762162153044,9.539,3713.8,3713.7,0.4811]
[1762162154144,3.2078,3713.9,3713.8,0.4811]
[1762162154445,12.7468,3713.9,3713.8,0.4811]
[1762162154841,12.7468,3713.9,3713.5,0.30923252]
[1762162155543,9.539,3713.8,3713.5,0.30923252]
[1762162155742,9.539,3713.8,3713.7,0.4811]
[1762162155945,9.539,3713.8,3713.5,0.30923252]
[1762162156147,3.2078,3713.9,3713.5,0.30923252]
[1762162156348,9.539,3713.7,3713.5,0.30923252]
[1762162156645,9.539,3713.7,3713.6,0.4811]
[1762162157748,9.539,3713.7,3713.6,0.9659]
[1762162157943,9.539,3713.7,3713.6,0.4811]
[1762162158146,3.2078,3713.9,3713.8,0.4811]
[1762162158444,13.02677352,3713.9,3713.8,0.4811]
[1762162158846,13.02577352,3713.9,3713.8,0.4811]
[1762162159050,3.2078,3713.9,3713.8,0.4811]
[1762162159248,3.2078,3714.3,3714.2,0.4811]
[1762162159450,13.0261822,3714.3,3714.2,0.4811]
[1762162161058,3.4871822,3714.3,3714.2,0.4811]
[1762162161249,13.0261822,3714.3,3714.2,0.4811]
[1762162161649,3.4871822,3714.3,3714.2,0.4811]
[1762162162051,8.1291822,3714.3,3714.2,0.4811]
[1762162162855,3.4871822,3714.3,3714.2,0.4811]
[1762162163251,8.8291822,3714.3,3714.2,0.4811]
[1762162164157,4.09591711,3714.3,3714.2,0.4811]
[1762162164351,13.63491711,3714.3,3714.2,0.4811]
[1762162165154,13.63629866,3714.3,3714.2,0.4811]
[1762162166656,4.09729866,3714.3,3714.2,0.4811]
[1762162166847,9.81976375,3714.3,3714.2,0.4811]
[1762162167253,0.28076375,3714.3,3714.2,0.4811]
[1762162167456,9.81876375,3714.3,3714.2,0.4811]
[1762162168161,10.42906357,3714.3,3714.2,0.4811]
[1762162169050,0.89106357,3714.3,3714.2,0.4811]
[1762162169256,9.30906357,3714.3,3714.2,0.4811]
[1762162169456,0.89106357,3714.3,3714.2,0.4811]
[1762162169758,6.68906357,3714.3,3714.2,0.4811]
[1762162171458,0.89106357,3714.3,3714.2,0.4811]
[1762162172563,0.28076375,3714.3,3714.2,0.4811]
[1762162179361,9.536,3714.8,3714.5,0.78438]
[1762162179568,0.61050928,3714.7,3714.6,0.5139]
[1762162180865,3.2078,3715.2,3714.6,0.5139]
[1762162181067,6.1115316,3715.1,3715.0,0.2997]
[1762162182268,0.6105316,3715.1,3715.0,0.2997]
[1762162183181,3.2078,3715.2,3715.0,0.2997]
[1762162183370,12.7428,3715.2,3715.0,0.2997]
[1762162183779,3.2078,3715.2,3715.1,0.5139]
[1762162183976,4.95,3715.3,3715.1,0.5139]
[1762162184676,4.95,3715.3,3715.1,0.9985]
[1762162185371,3.2078,3715.6,3715.5,0.2823]
[1762162185576,3.81800457,3715.6,3715.5,0.2823]
[1762162185980,0.61020457,3715.6,3715.5,0.7769]
[1762162186176,0.00245398,3715.9,3715.5,0.7769]
[1762162186177,7.436,3715.7,3715.5,1.26145]
[1762162187774,7.436,3715.7,3715.5,0.7769]
[1762162187977,7.436,3715.7,3715.5,1.26145]
[1762162191480,9.531,3715.7,3715.5,1.26145]
[1762162191679,0.00245398,3715.9,3715.5,1.26145]
[1762162191874,9.531,3715.8,3715.6,0.48454]
[1762162192779,9.53,3715.7,3715.6,0.48454]
[1762162192982,12.99269747,3715.7,3714.2,3.69252]
[1762162193284,3.2078,3715.1,3714.4,9.71923625]
[1762162193470,10.39458827,3715.0,3714.4,9.71923625]
[1762162193674,0.25489747,3714.9,3714.4,9.71923625]
[1762162194680,0.25489747,3714.9,3714.5,3.5075]
[1762162194882,0.00245398,3715.9,3715.5,0.2823]
[1762162195077,10.21368703,3715.8,3715.5,0.2823]
[1762162195273,3.2078,3715.6,3715.5,0.2823]
[1762162195474,3.46276394,3715.6,3715.0,0.2823]
[1762162195674,0.25496394,3715.5,3715.0,0.2823]
[1762162198579,4.228,3715.4,3715.0,0.2823]
[1762162198981,3.2078,3715.2,3715.0,0.2823]
[1762162199582,0.25512657,3715.1,3715.0,0.2823]
[1762162200878,0.86533227,3715.1,3714.5,0.2997]
[1762162201078,3.2078,3714.6,3714.5,0.2997]
[1762162201279,3.2078,3715.0,3714.5,0.7943]
[1762162201476,7.32817657,3714.9,3714.8,0.4946]
[1762162201675,7.32817657,3714.9,3714.5,0.2997]
[1762162201981,7.073,3714.9,3714.5,0.2997]
[1762162202883,3.2078,3714.6,3714.5,0.7943]
[1762162203580,3.2078,3714.6,3714.5,0.2997]
[1762162203780,3.2078,3715.0,3714.6,0.4946]
[1762162203981,9.78321371,3714.9,3714.6,0.4946]
[1762162204275,3.2078,3715.0,3714.9,0.4946]
[1762162204585,3.46303282,3715.0,3714.5,0.2997]
[1762162204780,12.7348,3715.0,3714.5,0.2997]
[1762162204980,12.7348,3715.0,3714.9,0.4946]
[1762162205181,3.46301971,3715.0,3714.5,0.2997]
[1762162205383,0.25521971,3714.9,3714.5,0.2997]
[1762162205881,3.2078,3714.6,3714.5,0.2997]
[1762162206081,2.0732147,3714.6,3714.4,9.71923625]
[1762162206288,0.25521971,3714.5,3714.4,9.71923625]
[1762162207081,1.91928162,3715.9,3715.0,0.2823]
[1762162207082,3.2078,3715.4,3715.0,0.2823]
[1762162207287,10.39221912,3715.3,3715.0,0.2823]
[1762162207483,0.25521386,3715.2,3715.0,0.2823]
[1762162207784,0.25521386,3715.1,3715.0,0.7769]
[1762162207987,3.21025398,3715.9,3715.5,0.2823]
[1762162208190,3.95,3715.8,3715.7,0.4946]
[1762162208984,3.21025398,3715.9,3715.8,0.4946]
[1762162209191,0.00245398,3715.9,3715.8,0.4946]
[1762162209985,0.00245398,3715.9,3715.6,3.2078]
[1762162214487,0.00245398,3715.9,3715.7,0.48453]
[1762162214693,0.00245398,3715.9,3715.8,0.4946]
[1762162215591,3.2078,3716.9,3716.5,0.2774]
[1762162215796,3.2078,3717.3,3717.0,0.2774]
[1762162215988,7.45435714,3717.2,3717.0,0.2774]
[1762162216195,6.845,3717.2,3717.0,0.2774]
[1762162216583,9.524,3717.1,3717.0,0.2804363]
[1762162216893,0.00271459,3717.2,3717.0,0.2804363]
[1762162217094,9.524,3717.1,3717.0,0.2804363]
[1762162217489,9.524,3717.1,3717.0,0.0030363]
[1762162217689,9.524,3717.1,3717.0,0.2804363]
[1762162218892,9.523,3717.1,3717.0,0.2804363]
[1762162219391,0.00271459,3717.2,3717.0,0.2804363]
[1762162219595,0.00271459,3717.2,3717.1,0.4839]
[1762162219795,4.01871459,3717.2,3717.1,0.4839]
[1762162219995,0.00271459,3717.2,3717.1,0.4839]
[1762162220195,9.52571459,3717.2,3717.1,0.4839]
[1762162220596,0.00271459,3717.2,3717.1,0.4839]
[1762162221698,0.00271459,3717.2,3717.0,0.2804363]
[1762162221898,0.00271459,3717.2,3717.1,0.4839]
[1762162224698,0.00271459,3717.2,3717.1,3.6917]
[1762162230398,0.00271459,3717.2,3717.0,0.2804363]
[1762162234600,0.24947793,3717.1,3717.0,3.63e-05]
[1762162234796,0.85651444,3717.1,3716.5,0.2774]
[1762162235101,3.2078,3716.6,3716.5,0.2774]
[1762162235701,3.2078,3716.6,3716.5,0.27989609]
[1762162237607,3.45783025,3716.6,3716.5,0.27989609]
[1762162241606,5.42403025,3716.6,3716.5,0.72249609]
[1762162242004,5.42403025,3716.6,3716.5,0.27989609]
[1762162242206,0.25003025,3716.6,3716.5,0.27989609]
[1762162242405,5.42403025,3716.6,3716.5,0.27989609]
[1762162243709,0.25003025,3716.6,3716.5,0.73789609]
[1762162243900,9.76503025,3716.6,3716.5,0.73789609]
[1762162244706,0.25003025,3716.6,3716.5,0.73789609]
[1762162245013,5.42303025,3716.6,3716.5,0.73789609]
[1762162245610,5.42303025,3716.6,3716.5,0.27989609]
[1762162246207,0.25003025,3716.6,3716.5,0.73789609]
[1762162246509,9.76403025,3716.6,3716.5,0.73789609]
[1762162248011,9.76403025,3716.6,3716.5,0.27989609]
[1762162248510,9.514,3716.6,3716.5,0.27989609]
[1762162251502,10.1233301,3716.6,3716.5,0.27989609]
[1762162251709,9.514,3716.6,3716.5,0.73789609]
[1762162252011,9.514,3716.6,3716.5,0.27989609]
[1762162252213,3.2078,3717.0,3716.5,0.27989609]
[1762162252510,9.512,3716.6,3716.5,0.27989609]
[1762162253312,3.2078,3717.0,3716.5,0.27989609]
[1762162253503,6.71435374,3716.9,3716.5,0.27989609]
[1762162253705,0.60935374,3716.8,3716.5,0.27989609]
[1762162253911,0.60935374,3716.7,3716.5,0.27989609]
[1762162254109,6.105,3716.9,3716.5,0.27989609]
[1762162254307,0.60935164,3716.8,3716.7,0.458]
[1762162254514,0.00271459,3717.2,3717.1,0.458]
[1762162254708,0.61208797,3717.2,3717.1,0.458]
[1762162255014,9.51471459,3717.2,3717.1,0.458]
[1762162255610,0.00271459,3717.2,3717.1,0.458]
[1762162259615,0.61241517,3717.2,3717.1,0.458]
[1762162260209,0.00271459,3717.2,3717.1,0.458]
[1762162262217,0.00271459,3717.2,3717.0,0.2502]
[1762162263317,0.00271459,3717.2,3717.1,0.458]
[1762162263616,3.2078,3717.8,3717.0,0.73456]
[1762162263617,3.2078,3717.8,3717.7,0.458]
[1762162263919,6.3778,3717.8,3717.7,0.458]
[1762162264519,12.71794924,3717.8,3717.7,0.458]
[1762162265712,12.71694924,3717.8,3717.7,0.458]
[1762162268314,3.20994924,3717.8,3717.7,0.458]
[1762162268719,6.46294924,3717.8,3717.7,0.458]
[1762162269722,3.25514924,3717.8,3717.7,0.458]
[1762162269923,9.50814924,3717.8,3717.7,0.458]
[1762162270325,0.00214924,3717.8,3717.7,0.458]
[1762162270526,9.50714924,3717.8,3717.7,0.458]
[1762162272026,0.00214924,3717.8,3717.7,0.458]
[1762162273024,3.2078,3718.3,3718.0,0.2359]
[1762162273223,3.049,3718.2,3718.0,0.2359]
[1762162273833,3.2078,3718.3,3718.0,0.2359]
[1762162274018,9.504,3718.1,3718.0,0.6561]
[1762162274222,9.504,3718.1,3718.0,0.2359]
[1762162275327,9.504,3718.1,3717.5,0.2502]
[1762162275528,3.2078,3717.9,3717.5,20.2502]
[1762162276223,3.21090127,3718.3,3718.0,0.2359]
[1762162276422,9.503,3718.2,3718.0,0.2359]
[1762162276729,16.227,3718.2,3717.5,20.0]
[1762162276924,3.2078,3717.6,3717.5,20.0]
[1762162277226,12.7098,3717.6,3717.5,20.0]
[1762162277426,12.7098,3717.6,3717.5,20.2359]
[1762162281328,3.2078,3717.6,3717.5,20.6561]
[1762162281524,6.3788,3717.6,3717.5,20.6561]
[1762162282825,6.3788,3717.6,3717.5,20.2359]
[1762162283026,3.2078,3717.6,3717.5,20.2359]
[1762162283226,6.3788,3717.6,3717.5,20.2359]
[1762162283432,3.2078,3717.6,3717.5,20.6561]
[1762162283632,6.3788,3717.6,3717.5,20.6561]
[1762162283930,3.2078,3717.6,3717.5,20.6561]
[1762162284132,12.7088,3717.6,3717.5,20.6561]
[1762162286135,3.2078,3717.6,3717.5,20.6561]
[1762162286331,6.3788,3717.6,3717.5,20.6561]
[1762162288439,3.2078,3717.6,3717.5,20.6561]
[1762162288640,3.2078,3718.1,3718.0,0.5988]
[1762162288837,0.00310127,3718.3,3718.2,0.3674]
[1762162290544,0.00310127,3718.3,3718.2,3.5752]
[1762162291748,3.2078,3719.5,3719.4,0.3674]
[1762162292051,9.498,3720.2,3719.6,0.3674]
[1762162292348,3.2078,3720.3,3719.6,0.3674]
[1762162292548,3.42037844,3720.7,3720.6,0.3674]
[1762162292747,0.21561652,3720.7,3720.6,0.37066581]
[1762162293142,0.00303808,3720.7,3720.6,0.37066581]
[1762162294645,3.2078,3722.4,3721.7,0.3674]